fUST/lending_fUST_20250624
["ID","MTS","AMOUNT","RATE_DAILY","PERIOD"]
[367210548,1750702274334,-1500.0,0.0002096,7]
[367210549,1750702274344,-1500.0,0.0002096,7]
[367210550,1750702274353,-1500.0,0.0002096,7]
[367210551,1750702274365,-1500.0,0.0002096,7]
[367210552,1750702274374,-1500.0,0.0002096,7]
[367210553,1750702274384,-1500.0,0.0002096,7]
[367210554,1750702274395,-1500.0,0.0002096,7]
[367210555,1750702274404,-1500.0,0.0002096,7]
[367210556,1750702274414,-1500.0,0.0002096,7]
[367210557,1750702274423,-1500.0,0.0002096,7]
[367210558,1750702274437,-1500.0,0.0002096,7]
[367210559,1750702274446,-1500.0,0.0002096,7]
[367210560,1750702274456,-1500.0,0.0002096,7]
[367210561,1750702274465,-1500.0,0.0002096,7]
[367210562,1750702274475,-1500.0,0.0002096,7]
[367210563,1750702274485,-1500.0,0.0002096,7]
[367210564,1750702274495,-1500.0,0.0002096,7]
[367210565,1750702274506,-976.76,0.0002096,2]
[367210566,1750702274516,-1385.55,0.0002096,2]
[367210567,1750702274526,-481.501728,0.0002096,2]
[367210568,1750702274537,-481.501728,0.0002096,2]
[367210569,1750702274546,-3985.75,0.0002096,2]
[367210570,1750702274556,-541.28,0.0002096,2]
[367210571,1750702274565,-1120.09,0.0002096,2]
[367210572,1750702274575,-460.0,0.0002096,2]
[367210573,1750702274585,-857.29,0.0002096,2]
[367210574,1750702274594,-460.0,0.0002096,2]
[367210575,1750702274604,-460.0,0.0002096,2]
[367210576,1750702274614,-518.26,0.0002096,2]
[367210577,1750702274624,-758.45,0.0002096,2]
[367210578,1750702274633,-245.65382674,0.0002096,2]
[367210579,1750702274643,-460.0,0.0002096,2]
[367210580,1750702274652,-460.0,0.0002096,2]
[367210581,1750702274662,-745.09,0.0002096,2]
[367210582,1750702274671,-846.53928378,0.0002096,7]
[367210583,1750702274682,-296.15739094,0.0002096,2]
[367210584,1750702275030,-897.24,0.0002096,2]
[367210585,1750702275049,-213.63163053,0.0002096,7]
[367210586,1750702275069,-460.0,0.0002096,2]
[367210587,1750702275081,-460.0,0.0002096,2]
[367210588,1750702275090,-1055.93,0.0002096,2]
[367210589,1750702275100,-996.88,0.0002096,2]
[367210590,1750702275109,-12553.69357174,0.0002096,7]
[367210591,1750702275118,-171.21416857,0.0002096,2]
[367210592,1750702275127,-160.0,0.0002096,7]
[367210593,1750702275137,-785.22,0.0002096,2]
[367210594,1750702275146,-648.84,0.0002096,2]
[367210595,1750702275156,-842.28,0.0002096,2]
[367210596,1750702275166,-1150.01,0.0002096,2]
[367210597,1750702275175,-333.734408,0.00020962,2]
[367210598,1750702275185,-333.734408,0.00020962,2]
[367210599,1750702275196,-944.273856,0.00020962,2]
[367210600,1750702275205,-944.273856,0.00020962,2]
[367210601,1750702275214,-151.0,0.00020962,2]
[367210602,1750702275224,-151.0,0.00020962,2]
[367210603,1750702275234,-151.0,0.00020962,2]
[367210604,1750702275243,-151.0,0.00020962,2]
[367210605,1750702275253,-151.0,0.00020962,2]
[367210606,1750702275263,-460.0,0.00020962,2]
[367210607,1750702275275,-730.14,0.00020962,2]
[367210608,1750702275284,-592.57,0.00020962,2]
[367210609,1750702275294,-460.0,0.00020962,2]
[367210610,1750702275303,-727.02,0.00020962,2]
[367210611,1750702275313,-460.0,0.00020962,2]
[367210612,1750702275325,-304.36313278,0.00020962,2]
[367210613,1750702275336,-460.0,0.00020962,2]
[367210614,1750702275345,-151.0,0.00020964,2]
[367210615,1750702275355,-213.036528,0.00020964,2]
[367210616,1750702275366,-151.0,0.00020966,2]
[367210617,1750702275376,-151.0,0.00020968,2]
[367210618,1750702275386,-151.0,0.00020968,2]
[367210619,1750702275396,-151.0,0.00020968,2]
[367210620,1750702275407,-481.501728,0.00020968,2]
[367210621,1750702275416,-481.501728,0.00020968,2]
[367210622,1750702275428,-1500.0,0.00020968,2]
[367210623,1750702275439,-1500.0,0.00020968,2]
[367210624,1750702275448,-1500.0,0.00020968,2]
[367210625,1750702275458,-1500.0,0.00020968,2]
[367210626,1750702275468,-1493.1105487,0.00020968,2]
[367210627,1750702275477,-1500.0,0.00020968,2]
[367210628,1750702275488,-1500.0,0.00020968,2]
[367210629,1750702275497,-827.8597219,0.00020968,2]
[367210630,1750702275507,-1500.0,0.00020968,2]
[367210631,1750702275516,-1500.0,0.00020968,2]
[367210632,1750702275526,-1500.0,0.00020968,2]
[367210633,1750702275536,-1500.0,0.00020968,2]
[367210634,1750702275545,-325.9287552,0.00020968,2]
[367210635,1750702275555,-1500.0,0.00020968,2]
[367210636,1750702275565,-1500.0,0.00020968,2]
[367210637,1750702275575,-1500.0,0.00020968,2]
[367210638,1750702275584,-1500.0,0.00020968,2]
[367210639,1750702275594,-1500.0,0.00020968,2]
[367210640,1750702275603,-1500.0,0.00020968,2]
[367210641,1750702275612,-1500.0,0.00020968,2]
[367210642,1750702275621,-598.46921268,0.00020968,2]
[367210643,1750702275631,-1500.0,0.00020968,2]
[367210644,1750702275641,-1500.0,0.00020968,2]
[367210645,1750702275651,-1502.00892003,0.00020968,2]
[367210646,1750702275660,-1500.0,0.00020968,2]
[367210647,1750702275670,-1500.0,0.00020968,2]
[367210648,1750702275679,-887.89015185,0.00020968,2]
[367210649,1750702275689,-1800.0,0.00020968,2]
[367210650,1750702275698,-1500.0,0.00020968,2]
[367210651,1750702275708,-1500.0,0.00020968,2]
[367210652,1750702275717,-1500.0,0.00020968,2]
[367210653,1750702275727,-1500.0,0.00020968,2]
[367210654,1750702275736,-1219.34337601,0.00020968,2]
[367210655,1750702275746,-1616.3322076,0.00020968,2]
[367210656,1750702275755,-1500.0,0.00020968,2]
[367210657,1750702275765,-1604.40286676,0.00020968,2]
[367210658,1750702275774,-151.0,0.00020977,2]
[367210659,1750702275783,-151.0,0.00020977,2]
[367210660,1750702275793,-151.0,0.00020981,2]
[367210661,1750702275803,-160.0,0.00021,2]
[367210662,1750702275812,-150.0,0.00021,2]
[367210663,1750702275822,-151.0,0.00021021,2]
[367210664,1750702275832,-333.734408,0.00021021,2]
[367210665,1750702275841,-333.734408,0.00021021,2]
[367210666,1750702275860,-944.273856,0.00021021,2]
[367210667,1750702275870,-944.273856,0.00021021,2]
[367210668,1750702275879,-151.0,0.00021021,2]
[367210669,1750702275888,-460.0,0.00021032,2]
[367210670,1750702275898,-577.79,0.00021032,2]
[367210671,1750702275907,-553.72,0.00021032,2]
[367210672,1750702275916,-653.33,0.00021032,2]
[367210673,1750702275926,-677.47,0.00021032,2]
[367210674,1750702275936,-934.6,0.00021032,2]
[367210675,1750702275945,-928.71,0.00021032,2]
[367210676,1750702275955,-6794.43,0.00021032,2]
[367210677,1750702275964,-460.0,0.00021032,2]
[367210678,1750702275973,-460.0,0.00021032,2]
[367210679,1750702275982,-586.68,0.00021032,2]
[367210680,1750702275992,-674.21,0.00021032,2]
[367210681,1750702276001,-6749.54,0.00021032,2]
[367210682,1750702276010,-460.0,0.00021032,2]
[367210683,1750702276020,-460.0,0.00021032,2]
[367210684,1750702276029,-460.0,0.00021033,2]
[367210685,1750702276038,-460.0,0.00021033,2]
[367210686,1750702276048,-460.0,0.00021033,2]
[367210687,1750702276057,-1342.47,0.00021033,2]
[367210688,1750702276067,-460.0,0.00021033,2]
[367210689,1750702276077,-554.93,0.00021033,2]
[367210690,1750702276086,-606.87,0.00021033,2]
[367210691,1750702276096,-543.92,0.00021033,2]
[367210692,1750702276105,-869.83,0.00021033,2]
[367210693,1750702276115,-486.25,0.00021033,2]
[367210694,1750702276125,-829.58,0.00021033,2]
[367210695,1750702276137,-460.0,0.00021033,2]
[367210696,1750702276147,-460.0,0.00021033,2]
[367210697,1750702276157,-5481.59,0.00021033,2]
[367210698,1750702276166,-221.65175997,0.00021033,2]
[367210699,1750702276176,-460.0,0.00021033,2]
[367210700,1750702276188,-460.0,0.00021033,2]
[367210701,1750702276197,-1991.7,0.00021033,2]
[367210702,1750702276206,-585.11,0.00021033,2]
[367210703,1750702276216,-1023.28,0.00021033,2]
[367210704,1750702276225,-305.86945585,0.00021033,2]
[367210705,1750702276234,-4573.78,0.00021033,2]
[367210706,1750702276244,-460.0,0.00021033,2]
[367210707,1750702276254,-514.23,0.00021033,2]
[367210708,1750702276263,-4501.74,0.00021033,2]
[367210709,1750702276275,-7625.39,0.00021033,2]
[367210710,1750702276285,-1430.08,0.00021033,2]
[367210711,1750702276295,-1777.53,0.00021033,2]
[367210712,1750702276304,-460.0,0.00021033,2]
[367210713,1750702276316,-3427.78,0.00021033,2]
[367210714,1750702276325,-7632.03,0.00021033,2]
[367210715,1750702276336,-568.48,0.00021033,2]
[367210716,1750702276346,-3044.38,0.00021033,2]
[367210717,1750702276356,-2095.8,0.00021033,2]
[367210718,1750702276366,-562.98452827,0.00021033,2]
[367210719,1750702276376,-460.0,0.00021033,2]
[367210720,1750702276386,-2537.0,0.00021043,2]
[367210721,1750702276395,-156.63543588,0.00021051,2]
[367210722,1750702276404,-296.145045,0.00021091,2]
[367210723,1750702276413,-500.0,0.00021095,8]
[367210724,1750702276423,-420.0,0.00021122,2]
[367210725,1750702276433,-300.0,0.00021122,2]
[367210726,1750702276442,-420.0,0.00021122,2]
[367210727,1750702276452,-420.0,0.00021123,2]
[367210728,1750702276462,-151.0,0.00021216,2]
[367210729,1750702276471,-252.13939,0.00021216,2]
[367210730,1750702276481,-2000.0,0.00021216,2]
[367210731,1750702276491,-500.0,0.00021216,2]
[367210732,1750702276501,-2000.0,0.00021216,2]
[367210733,1750702276510,-2000.0,0.00021216,2]
[367210734,1750702276520,-2000.0,0.00021216,2]
[367210735,1750702276529,-2000.0,0.00021216,2]
[367210736,1750702276539,-2000.0,0.00021216,2]
[367210737,1750702276549,-2123.88320114,0.00021216,2]
[367210738,1750702276558,-2000.0,0.00021216,2]
[367210739,1750702276568,-2000.0,0.00021216,2]
[367210740,1750702276578,-151.0,0.00021221,2]
[367210741,1750702276587,-604.38,0.00021225,2]
[367210742,1750702276597,-698.94,0.00021225,2]
[367210743,1750702276606,-460.0,0.00021225,2]
[367210744,1750702276616,-460.0,0.00021225,2]
[367210745,1750702276625,-620.81,0.00021225,2]
[367210746,1750702276635,-576.95,0.00021225,2]
[367210747,1750702276645,-621.2,0.00021225,2]
[367210748,1750702276654,-526.53,0.00021225,2]
[367210749,1750702276664,-460.0,0.00021225,2]
[367210750,1750702276673,-460.0,0.00021225,2]
[367210751,1750702276683,-517.27,0.00021225,2]
[367210752,1750702276692,-460.0,0.00021225,2]
[367210753,1750702276701,-460.0,0.00021225,2]
[367210754,1750702276711,-1387.87,0.00021225,2]
[367210755,1750702276720,-460.0,0.00021225,2]
[367210756,1750702276729,-900.37,0.00021225,2]
[367210757,1750702276740,-562.89,0.00021225,2]
[367210758,1750702276749,-1989.83,0.00021225,2]
[367210759,1750702276758,-852.85,0.00021225,2]
[367210760,1750702276768,-488.85,0.00021225,2]
[367210761,1750702276777,-460.0,0.00021225,2]
[367210762,1750702276786,-525.2,0.00021225,2]
[367210763,1750702276797,-460.0,0.00021225,2]
[367210764,1750702276806,-696.37,0.00021225,2]
[367210765,1750702276815,-460.0,0.00021225,2]
[367210766,1750702276824,-460.0,0.00021225,2]
[367210767,1750702276833,-460.0,0.00021225,2]
[367210768,1750702276842,-460.0,0.00021225,2]
[367210769,1750702276852,-547.44,0.00021225,2]
[367210770,1750702276861,-608.12,0.00021225,2]
[367210771,1750702276870,-1778.0,0.00021225,2]
[367210772,1750702276879,-715.53,0.00021225,2]
[367210773,1750702276888,-460.0,0.00021225,2]
[367210774,1750702276898,-2810.69,0.00021225,2]
[367210775,1750702276907,-460.0,0.00021225,2]
[367210776,1750702276917,-634.55,0.00021225,2]
[367210777,1750702276927,-2576.68,0.00021225,2]
[367210778,1750702276939,-460.0,0.00021225,2]
[367210779,1750702276949,-460.0,0.00021225,2]
[367210780,1750702276958,-460.0,0.00021225,2]
[367210781,1750702276967,-1321.89,0.00021225,2]
[367210782,1750702276976,-739.43,0.00021225,2]
[367210783,1750702276985,-460.0,0.00021225,2]
[367210784,1750702276995,-460.0,0.00021225,2]
[367210785,1750702277005,-487.28,0.00021225,2]
[367210786,1750702277014,-460.0,0.00021225,2]
[367210787,1750702277024,-816.19,0.00021225,2]
[367210788,1750702277034,-1455.95,0.00021225,2]
[367210789,1750702277043,-460.0,0.00021225,2]
[367210790,1750702277053,-1159.89,0.00021225,2]
[367210791,1750702277062,-893.45,0.00021225,2]
[367210792,1750702277072,-3219.82,0.00021225,2]
[367210793,1750702277081,-460.0,0.00021225,2]
[367210794,1750702277091,-492.39,0.00021225,2]
[367210795,1750702277100,-1312.29,0.00021225,2]
[367210796,1750702277109,-850.61,0.00021225,2]
[367210797,1750702277118,-2063.95,0.00021225,2]
[367210798,1750702277127,-468.72,0.00021225,2]
[367210799,1750702277136,-460.0,0.00021225,2]
[367210800,1750702277146,-571.37,0.00021225,2]
[367210801,1750702277155,-1310.44,0.00021225,2]
[367210802,1750702277165,-2085.6,0.00021225,2]
[367210803,1750702277174,-460.0,0.00021225,2]
[367210804,1750702277186,-460.0,0.00021225,2]
[367210805,1750702277195,-941.77,0.00021225,2]
[367210806,1750702277205,-982.4,0.00021225,2]
[367210807,1750702277214,-585.79,0.00021225,2]
[367210808,1750702277223,-460.0,0.00021225,2]
[367210809,1750702277233,-1680.0,0.00021225,2]
[367210810,1750702277242,-770.98,0.00021225,2]
[367210811,1750702277251,-704.38,0.00021225,2]
[367210812,1750702277261,-655.58,0.00021225,2]
[367210813,1750702277271,-556.65,0.00021225,2]
[367210814,1750702277285,-460.0,0.00021225,2]
[367210815,1750702277294,-470.84100457,0.00021227,2]
[367210816,1750702277304,-460.0,0.00021227,2]
[367210817,1750702277312,-460.0,0.00021227,2]
[367210818,1750702277323,-532.05,0.00021227,2]
[367210819,1750702277334,-1284.96,0.00021227,2]
[367210820,1750702277343,-3396.84,0.00021227,2]
[367210821,1750702277353,-908.56,0.00021227,2]
[367210822,1750702277362,-460.0,0.00021227,2]
[367210823,1750702277373,-648.74,0.00021227,2]
[367210824,1750702277382,-657.85,0.00021227,2]
[367210825,1750702277391,-460.0,0.00021227,2]
[367210826,1750702277400,-1178.32,0.00021227,2]
[367210827,1750702277410,-460.0,0.00021227,2]
[367210828,1750702277420,-2051.07,0.00021227,2]
[367210829,1750702277432,-15965.38,0.00021227,2]
[367210830,1750702277441,-2376.67,0.00021227,2]
[367210831,1750702277451,-460.0,0.00021227,2]
[367210832,1750702277460,-1259.65,0.00021227,2]
[367210833,1750702277469,-2831.83,0.00021227,2]
[367210834,1750702277478,-6457.57,0.00021227,2]
[367210835,1750702277488,-1904.77,0.00021227,2]
[367210836,1750702277498,-655.41,0.00021228,2]
[367210837,1750702277507,-591.26,0.00021228,2]
[367210838,1750702277518,-460.0,0.00021228,2]
[367210839,1750702277527,-625.48,0.00021229,2]
[367210840,1750702277537,-474.35,0.0002123,2]
[367210841,1750702277546,-724.42,0.0002123,2]
[367210842,1750702277555,-585.5,0.0002123,2]
[367210843,1750702277565,-1687.04,0.0002123,2]
[367210844,1750702277575,-900.91,0.0002123,2]
[367210845,1750702277584,-1661.82,0.0002123,2]
[367210846,1750702277593,-981.17,0.0002123,2]
[367210847,1750702277602,-856.33,0.0002123,2]
[367210848,1750702277612,-1474.59,0.0002123,2]
[367210849,1750702277621,-460.0,0.0002123,2]
[367210850,1750702277631,-460.0,0.0002123,2]
[367210851,1750702277641,-1301.19,0.0002123,2]
[367210852,1750702277650,-383.72,0.0002123,2]
[367210853,1750702277660,-460.0,0.0002123,2]
[367210854,1750702277669,-508.04,0.0002123,2]
[367210855,1750702277679,-520.9462463,0.0002123,2]
[367210856,1750702277690,-460.0,0.0002123,2]
[367210857,1750702277699,-929.23,0.0002123,2]
[367210858,1750702277708,-735.13,0.0002123,2]
[367210859,1750702277717,-460.0,0.0002123,2]
[367210860,1750702277727,-587.75,0.0002123,2]
[367210861,1750702277736,-2121.29,0.0002123,2]
[367210862,1750702277745,-927.39,0.0002123,2]
[367210863,1750702277755,-594.5,0.0002123,2]
[367210864,1750702277764,-681.19,0.0002123,2]
[367210865,1750702277774,-2543.97,0.0002123,2]
[367210866,1750702277783,-460.0,0.0002123,2]
[367210867,1750702277792,-1189.72,0.0002123,2]
[367210868,1750702277802,-1227.09,0.0002123,2]
[367210869,1750702277813,-773.52,0.0002123,2]
[367210870,1750702277823,-505.38,0.0002123,2]
[367210871,1750702277833,-1234.97,0.0002123,2]
[367210872,1750702277844,-7516.55,0.0002123,2]
[367210873,1750702277854,-4782.92,0.0002123,2]
[367210874,1750702277864,-2097.54,0.0002123,2]
[367210875,1750702277874,-1077.35,0.0002123,2]
[367210876,1750702277884,-794.81,0.0002123,2]
[367210877,1750702277894,-460.0,0.0002123,2]
[367210878,1750702277904,-560.47,0.0002123,2]
[367210879,1750702277914,-4182.16,0.0002123,2]
[367210880,1750702277924,-791.3,0.0002123,2]
[367210881,1750702277936,-5445.98,0.0002123,2]
[367210882,1750702277947,-460.0,0.0002123,2]
[367210883,1750702277958,-606.04,0.0002123,2]
[367210884,1750702277968,-460.0,0.0002123,2]
[367210885,1750702277979,-1050.77,0.0002123,2]
[367210886,1750702277989,-1341.05,0.0002123,2]
[367210887,1750702277998,-9283.48,0.0002123,2]
[367210888,1750702278010,-460.0,0.0002123,2]
[367210889,1750702278020,-1949.77,0.0002123,2]
[367210890,1750702278030,-2323.85,0.00021231,2]
[367210891,1750702278041,-705.33,0.00021231,2]
[367210892,1750702278051,-919.28,0.00021231,2]
[367210893,1750702278061,-460.0,0.00021231,2]
[367210894,1750702278071,-460.0,0.00021231,2]
[367210895,1750702278080,-460.0,0.00021231,2]
[367210896,1750702278090,-662.4,0.00021231,2]
[367210897,1750702278100,-460.0,0.00021231,2]
[367210898,1750702278109,-503.42,0.00021231,2]
[367210899,1750702278118,-674.65,0.00021231,2]
[367210900,1750702278128,-498.37,0.00021232,2]
[367210901,1750702278137,-460.0,0.00021232,2]
[367210902,1750702278146,-460.0,0.00021232,2]
[367210903,1750702278156,-493.35,0.00021232,2]
[367210904,1750702278165,-460.0,0.00021232,2]
[367210905,1750702278174,-715.51,0.00021232,2]
[367210906,1750702278186,-460.0,0.00021232,2]
[367210907,1750702278196,-1726.48,0.00021232,2]
[367210908,1750702278205,-924.54,0.00021232,2]
[367210909,1750702278215,-460.0,0.00021232,2]
[367210910,1750702278225,-460.0,0.00021232,2]
[367210911,1750702278234,-460.0,0.00021232,2]
[367210912,1750702278244,-460.0,0.00021232,2]
[367210913,1750702278254,-499.53,0.00021232,2]
[367210914,1750702278263,-460.0,0.00021232,2]
[367210915,1750702278275,-500.0,0.00021232,2]
[367210916,1750702278284,-714.86,0.00021232,2]
[367210917,1750702278450,-460.0,0.00021232,2]
[367210918,1750702278460,-460.0,0.00021232,2]
[367210919,1750702278471,-646.96,0.00021232,2]
[367210920,1750702278480,-819.18,0.00021232,2]
[367210921,1750702278490,-590.17,0.00021232,2]
[367210922,1750702278500,-836.54,0.00021232,2]
[367210923,1750702278512,-460.0,0.00021232,2]
[367210924,1750702278522,-460.0,0.00021232,2]
[367210925,1750702278532,-460.0,0.00021232,2]
[367210926,1750702278542,-1511.56,0.00021232,2]
[367210927,1750702278552,-460.0,0.00021232,2]
[367210928,1750702278562,-460.0,0.00021232,2]
[367210929,1750702278572,-460.0,0.00021232,2]
[367210930,1750702278582,-460.0,0.00021232,2]
[367210931,1750702278592,-460.0,0.00021232,2]
[367210932,1750702278602,-707.3,0.00021232,2]
[367210933,1750702278612,-735.42,0.00021232,2]
[367210934,1750702278622,-1601.96,0.00021232,2]
[367210935,1750702278631,-460.0,0.00021232,2]
[367210936,1750702278643,-460.0,0.00021232,2]
[367210937,1750702278653,-460.0,0.00021232,2]
[367210938,1750702278662,-460.0,0.00021232,2]
[367210939,1750702278673,-151.0,0.00021233,2]
[367210940,1750702278683,-151.0,0.00021234,2]
[367210941,1750702278693,-156.116721,0.00021234,2]
[367210942,1750702278703,-151.0,0.00021234,2]
[367210943,1750702278714,-976.76,0.00021234,2]
[367210944,1750702278725,-1385.55,0.00021234,2]
[367210945,1750702278735,-481.501728,0.00021234,2]
[367210946,1750702278745,-481.501728,0.00021234,2]
[367210947,1750702278756,-3985.75,0.00021234,2]
[367210948,1750702278765,-541.28,0.00021234,2]
[367210949,1750702278776,-1120.09,0.00021234,2]
[367210950,1750702278786,-312.67574976,0.00021234,2]
[367210951,1750702278796,-857.29,0.00021234,2]
[367210952,1750702278806,-460.0,0.00021234,2]
[367210953,1750702278821,-460.0,0.00021234,2]
[367210954,1750702278832,-518.26,0.00021234,2]
[367210955,1750702278843,-758.45,0.00021234,2]
[367210956,1750702278853,-460.0,0.00021234,2]
[367210957,1750702278869,-460.0,0.00021234,2]
[367210958,1750702278880,-745.09,0.00021234,2]
[367210959,1750702278890,-897.24,0.00021234,2]
[367210960,1750702278900,-460.0,0.00021234,2]
[367210961,1750702278910,-460.0,0.00021234,2]
[367210962,1750702278921,-1055.93,0.00021234,2]
[367210963,1750702278931,-996.88,0.00021234,2]
[367210964,1750702278942,-785.22,0.00021234,2]
[367210965,1750702278952,-648.84,0.00021234,2]
[367210966,1750702278963,-842.28,0.00021234,2]
[367210967,1750702278973,-1150.01,0.00021234,2]
[367210968,1750702278983,-460.0,0.00021236,2]
[367210969,1750702278993,-730.14,0.00021236,2]
[367210970,1750702279003,-592.57,0.00021236,2]
[367210971,1750702279013,-460.0,0.00021236,2]
[367210972,1750702279023,-727.02,0.00021236,2]
[367210973,1750702279033,-460.0,0.00021236,2]
[367210974,1750702279043,-460.0,0.00021236,2]
[367210975,1750702279052,-333.734408,0.00021237,2]
[367210976,1750702279062,-333.734408,0.00021237,2]
[367210977,1750702279073,-944.273856,0.00021237,2]
[367210978,1750702279083,-944.273856,0.00021237,2]
[367210979,1750702279094,-151.0,0.00021237,2]
[367210980,1750702279104,-151.0,0.00021237,2]
[367210981,1750702279114,-238.240815,0.0002124,2]
[367210982,1750702279124,-151.0,0.00021241,2]
[367210983,1750702279135,-151.0,0.00021242,2]
[367210984,1750702279144,-223.618731,0.00021242,2]
[367210985,1750702279154,-151.0,0.00021242,2]
[367210986,1750702279165,-481.501728,0.00021242,2]
[367210987,1750702279176,-481.501719,0.00021242,2]
[367210988,1750702279186,-333.734408,0.0002125,2]
[367210989,1750702279196,-333.734408,0.0002125,2]
[367210990,1750702279207,-944.273856,0.0002125,2]
[367210991,1750702279218,-944.273856,0.0002125,2]
[367210992,1750702279228,-151.0,0.0002125,2]
[367210993,1750702279238,-151.0,0.00021251,2]
[367210994,1750702279248,-560.45275359,0.00021268,2]
[367210995,1750702279257,-500.0,0.00021273,2]
[367210996,1750702279267,-213.63163053,0.00021276,2]
[367210997,1750702279281,-160.0,0.00021276,2]
[367210998,1750702279291,-425.08510397,0.00021276,2]
[367210999,1750702279301,-160.0,0.00021276,2]
[367211000,1750702279310,-836.70095952,0.00021276,2]
[367211001,1750702279323,-230.18214666,0.00021276,2]
[367211002,1750702279333,-160.0,0.00021282,2]
[367211003,1750702279342,-12553.69357174,0.00021282,2]
[367211004,1750702279352,-160.0,0.00021282,2]
[367211005,1750702279363,-160.0,0.00021287,2]
[367211006,1750702279373,-846.53928378,0.00021288,2]
[367211007,1750702279384,-160.0,0.00021288,2]
[367211008,1750702279395,-460.0,0.00021306,2]
[367211009,1750702279405,-577.79,0.00021306,2]
[367211010,1750702279415,-553.72,0.00021306,2]
[367211011,1750702279425,-653.33,0.00021306,2]
[367211012,1750702279436,-677.47,0.00021306,2]
[367211013,1750702279445,-934.6,0.00021306,2]
[367211014,1750702279455,-928.71,0.00021306,2]
[367211015,1750702279465,-6794.43,0.00021306,2]
[367211016,1750702279476,-460.0,0.00021306,2]
[367211017,1750702279487,-460.0,0.00021306,2]
[367211018,1750702279497,-586.68,0.00021306,2]
[367211019,1750702279506,-674.21,0.00021306,2]
[367211020,1750702279516,-6749.54,0.00021306,2]
[367211021,1750702279526,-460.0,0.00021306,2]
[367211022,1750702279536,-460.0,0.00021306,2]
[367211023,1750702279546,-460.0,0.00021307,2]
[367211024,1750702279556,-460.0,0.00021307,2]
[367211025,1750702279566,-282.4737386,0.00021307,2]
[367211026,1750702279576,-1342.47,0.00021307,2]
[367211027,1750702279586,-460.0,0.00021307,2]
[367211028,1750702279596,-554.93,0.00021307,2]
[367211029,1750702279606,-606.87,0.00021307,2]
[367211030,1750702279615,-543.92,0.00021307,2]
[367211031,1750702279625,-486.25,0.00021307,2]
[367211032,1750702279634,-829.58,0.00021307,2]
[367211033,1750702279645,-460.0,0.00021307,2]
[367211034,1750702279655,-460.0,0.00021307,2]
[367211035,1750702279665,-5481.59,0.00021307,2]
[367211036,1750702279675,-460.0,0.00021307,2]
[367211037,1750702279685,-460.0,0.00021307,2]
[367211038,1750702279695,-1991.7,0.00021307,2]
[367211039,1750702279704,-585.11,0.00021307,2]
[367211040,1750702279714,-1023.28,0.00021307,2]
[367211041,1750702279726,-4573.78,0.00021307,2]
[367211042,1750702279737,-458.57137614,0.00021307,2]
[367211043,1750702279748,-514.23,0.00021307,2]
[367211044,1750702279758,-4501.74,0.00021307,2]
[367211045,1750702279768,-7625.39,0.00021307,2]
[367211046,1750702279778,-1430.08,0.00021307,2]
[367211047,1750702279789,-1777.53,0.00021307,2]